[Event "Titled Tuesday Blitz June 20 Late 2023"]
[White "Kavyev, Ruslan"]
[Black "Durarbayli, Vasif"]
[WhiteFideId "34110981"]
[BlackFideId "13402935"]
[WhiteElo "2336"]
[BlackElo "2551"]
[Result "1-0"]
[Round "5"]
[TimeControl "180+2"]
[Date "2023.06.20"]
[WhiteClock "0:00:09"]
[BlackClock "0:00:00"]
[Board "50"]

1. d4 {[%clk 0:03:00]}  d5 {[%clk 0:02:59]} 2. c4 {[%clk 0:03:00]}  e6 {[%clk 0:02:59]} 3. g3 {[%clk 0:03:01]}  Nf6 {[%clk 0:02:58]} 4. Bg2 {[%clk 0:03:01]}  Bb4+ {[%clk 0:02:59]} 5. Bd2 {[%clk 0:03:01]}  Be7 {[%clk 0:02:59]} 6. Nf3 {[%clk 0:03:00]}  O-O {[%clk 0:03:00]} 7. O-O {[%clk 0:03:01]}  Nbd7 {[%clk 0:03:00]} 8. Qc2 {[%clk 0:03:01]}  c6 {[%clk 0:03:01]} 9. Bf4 {[%clk 0:03:01]}  b6 {[%clk 0:03:00]} 10. Ne5 {[%clk 0:03:01]}  Nxe5 {[%clk 0:02:57]} 11. dxe5 {[%clk 0:03:01]}  Nd7 {[%clk 0:02:58]} 12. Rd1 {[%clk 0:02:59]}  g5 {[%clk 0:02:54]} 13. Bc1 {[%clk 0:02:57]}  Nxe5 {[%clk 0:02:51]} 14. cxd5 {[%clk 0:02:57]}  cxd5 {[%clk 0:02:49]} 15. e4 {[%clk 0:02:57]}  Bb7 {[%clk 0:02:49]} 16. exd5 {[%clk 0:02:57]}  exd5 {[%clk 0:02:41]} 17. Nc3 {[%clk 0:02:55]}  Rc8 {[%clk 0:02:40]} 18. Be3 {[%clk 0:02:41]}  Ng4 {[%clk 0:02:10]} 19. Bd4 {[%clk 0:02:36]}  Rc4 {[%clk 0:02:02]} 20. Qf5 {[%clk 0:02:33]}  Nh6 {[%clk 0:01:59]} 21. Qe5 {[%clk 0:02:32]}  Rxd4 {[%clk 0:01:53]} 22. Qxd4 {[%clk 0:02:30]}  Bc5 {[%clk 0:01:51]} 23. Qa4 {[%clk 0:02:23]}  Qf6 {[%clk 0:01:46]} 24. Rd2 {[%clk 0:02:23]}  Bc6 {[%clk 0:01:39]} 25. Qd1 {[%clk 0:02:16]}  d4 {[%clk 0:01:30]} 26. Ne4 {[%clk 0:02:11]}  Bxe4 {[%clk 0:01:22]} 27. Bxe4 {[%clk 0:02:12]}  g4 {[%clk 0:01:21]} 28. Rc1 {[%clk 0:02:04]}  Qg5 {[%clk 0:01:20]} 29. b4 {[%clk 0:01:57]}  Bxb4 {[%clk 0:01:15]} 30. Rxd4 {[%clk 0:01:57]}  Bc5 {[%clk 0:01:15]} 31. Rd5 {[%clk 0:01:56]}  f5 {[%clk 0:01:15]} 32. Bg2 {[%clk 0:01:52]}  Qf6 {[%clk 0:01:01]} 33. Rd7 {[%clk 0:01:44]}  Kh8 {[%clk 0:00:54]} 34. Rc2 {[%clk 0:01:25]}  Nf7 {[%clk 0:00:48]} 35. Rcd2 {[%clk 0:01:10]}  f4 {[%clk 0:00:47]} 36. Be4 {[%clk 0:01:06]}  Ng5 {[%clk 0:00:32]} 37. Qc2 {[%clk 0:00:43]}  fxg3 {[%clk 0:00:17]} 38. hxg3 {[%clk 0:00:41]}  Qe5 {[%clk 0:00:17]} 39. Bg2 {[%clk 0:00:23]}  Qe1+ {[%clk 0:00:09]} 40. Kh2 {[%clk 0:00:23]}  Qe5 {[%clk 0:00:09]} 41. Rd8 {[%clk 0:00:20]}  Qf6 {[%clk 0:00:06]} 42. Rxf8+ {[%clk 0:00:20]}  Bxf8 {[%clk 0:00:05]} 43. Qc8 {[%clk 0:00:16]}  Kg7 {[%clk 0:00:02]} 44. Qxg4 {[%clk 0:00:16]}  Qh6+ {[%clk 0:00:01]} 45. Kg1 {[%clk 0:00:16]}  Kh8 {[%clk 0:00:02]} 46. Rd8 {[%clk 0:00:15]}  Qf6 {[%clk 0:00:02]} 47. Re8 {[%clk 0:00:14]}  h6 {[%clk 0:00:01]} 48. Qc8 {[%clk 0:00:13]}  Kg7 {[%clk 0:00:01]} 49. Qd7+ {[%clk 0:00:13]}  Kh8 {[%clk 0:00:02]} 50. f4 {[%clk 0:00:09]}  Nh7 {[%clk 0:00:02]} 51. Be4 {[%clk 0:00:08]}  Qa1+ {[%clk 0:00:02]} 52. Kg2 {[%clk 0:00:08]}  Qxa2+ {[%clk 0:00:01]} 53. Kh3 {[%clk 0:00:09]}  Nf6 {[%clk 0:00:00]} 54. Rxf8+ {[%clk 0:00:09]} 1-0


[Site "https://www.chess.com"]

[Event "Titled Tuesday Blitz June 20 Late 2023"]
[White "Sjugirov, Sanan"]
[Black "Subelj, Jan"]
[WhiteFideId "4189302"]
[BlackFideId "14618583"]
[WhiteElo "2569"]
[BlackElo "2499"]
[Result "1-0"]
[Round "5"]
[TimeControl "180+2"]
[Date "2023.06.20"]
[WhiteClock "0:00:11"]
[BlackClock "0:00:01"]
[Board "51"]

1. d4 {[%clk 0:03:00]}  c6 {[%clk 0:03:00]} 2. c4 {[%clk 0:02:58]}  d5 {[%clk 0:03:01]} 3. Nf3 {[%clk 0:02:59]}  Nf6 {[%clk 0:03:02]} 4. e3 {[%clk 0:02:57]}  Bf5 {[%clk 0:03:01]} 5. Nc3 {[%clk 0:02:58]}  e6 {[%clk 0:03:01]} 6. Nh4 {[%clk 0:02:59]}  Bg4 {[%clk 0:02:48]} 7. Qb3 {[%clk 0:02:54]}  Qb6 {[%clk 0:02:46]} 8. h3 {[%clk 0:02:45]}  Bh5 {[%clk 0:02:39]} 9. g4 {[%clk 0:02:45]}  Bg6 {[%clk 0:02:39]} 10. g5 {[%clk 0:02:43]}  Nfd7 {[%clk 0:02:31]} 11. Nxg6 {[%clk 0:02:39]}  hxg6 {[%clk 0:02:30]} 12. Bd2 {[%clk 0:02:31]}  Be7 {[%clk 0:02:08]} 13. f4 {[%clk 0:02:30]}  dxc4 {[%clk 0:01:25]} 14. Bxc4 {[%clk 0:02:26]}  Qc7 {[%clk 0:01:25]} 15. O-O-O {[%clk 0:02:21]}  Nb6 {[%clk 0:01:24]} 16. Be2 {[%clk 0:02:18]}  N8d7 {[%clk 0:01:24]} 17. Kb1 {[%clk 0:02:17]}  c5 {[%clk 0:01:16]} 18. Nb5 {[%clk 0:02:13]}  Qc6 {[%clk 0:01:12]} 19. Rc1 {[%clk 0:02:00]}  a6 {[%clk 0:01:07]} 20. Na3 {[%clk 0:01:54]}  Qd6 {[%clk 0:01:03]} 21. Nc2 {[%clk 0:01:12]}  Rc8 {[%clk 0:00:58]} 22. Qd3 {[%clk 0:00:54]}  cxd4 {[%clk 0:00:40]} 23. Qxd4 {[%clk 0:00:42]}  O-O {[%clk 0:00:32]} 24. Qxd6 {[%clk 0:00:42]}  Bxd6 {[%clk 0:00:33]} 25. Rhd1 {[%clk 0:00:40]}  Rfd8 {[%clk 0:00:25]} 26. Ba5 {[%clk 0:00:38]}  Bc7 {[%clk 0:00:23]} 27. Bf3 {[%clk 0:00:32]}  Nc4 {[%clk 0:00:12]} 28. Bxc7 {[%clk 0:00:32]}  Rxc7 {[%clk 0:00:13]} 29. Nb4 {[%clk 0:00:31]}  Rdc8 {[%clk 0:00:12]} 30. Rc3 {[%clk 0:00:26]}  Ndb6 {[%clk 0:00:07]} 31. Be2 {[%clk 0:00:12]}  Na4 {[%clk 0:00:04]} 32. Rxc4 {[%clk 0:00:12]}  Rxc4 {[%clk 0:00:05]} 33. Bxc4 {[%clk 0:00:12]}  Rxc4 {[%clk 0:00:06]} 34. Rd8+ {[%clk 0:00:12]}  Kh7 {[%clk 0:00:06]} 35. Nd3 {[%clk 0:00:12]}  Re4 {[%clk 0:00:05]} 36. Ne5 {[%clk 0:00:12]}  Rxe3 {[%clk 0:00:03]} 37. Nxf7 {[%clk 0:00:11]}  Re1+ {[%clk 0:00:04]} 38. Kc2 {[%clk 0:00:11]}  Re2+ {[%clk 0:00:01]} 39. Kd1 {[%clk 0:00:11]} 1-0


[Site "https://www.chess.com"]

[Event "Titled Tuesday Blitz June 20 Late 2023"]
[White "Yuan, Qingyu"]
[Black "Piesik, Piotr"]
[WhiteFideId "8609772"]
[BlackFideId "1136194"]
[WhiteElo "2359"]
[BlackElo "2303"]
[Result "0-1"]
[Round "5"]
[TimeControl "180+2"]
[Date "2023.06.20"]
[WhiteClock "0:00:00"]
[BlackClock "0:00:12"]
[Board "55"]

1. e4 {[%clk 0:02:58]}  g6 {[%clk 0:02:58]} 2. d4 {[%clk 0:02:57]}  Bg7 {[%clk 0:02:59]} 3. Nf3 {[%clk 0:02:57]}  c6 {[%clk 0:02:59]} 4. h3 {[%clk 0:02:56]}  d6 {[%clk 0:02:59]} 5. Bd3 {[%clk 0:02:54]}  Nd7 {[%clk 0:02:57]} 6. O-O {[%clk 0:02:53]}  e5 {[%clk 0:02:57]} 7. c3 {[%clk 0:02:53]}  Ngf6 {[%clk 0:02:57]} 8. Re1 {[%clk 0:02:53]}  O-O {[%clk 0:02:58]} 9. a4 {[%clk 0:02:51]}  Qc7 {[%clk 0:02:57]} 10. Nbd2 {[%clk 0:02:51]}  Re8 {[%clk 0:02:52]} 11. Nf1 {[%clk 0:02:45]}  Rb8 {[%clk 0:02:50]} 12. Ng3 {[%clk 0:02:42]}  b6 {[%clk 0:02:48]} 13. Be3 {[%clk 0:02:35]}  a6 {[%clk 0:02:46]} 14. Qb3 {[%clk 0:02:23]}  b5 {[%clk 0:02:43]} 15. axb5 {[%clk 0:02:24]}  axb5 {[%clk 0:02:42]} 16. Ng5 {[%clk 0:02:11]}  Nf8 {[%clk 0:02:37]} 17. f4 {[%clk 0:02:04]}  Ne6 {[%clk 0:02:28]} 18. fxe5 {[%clk 0:01:39]}  dxe5 {[%clk 0:02:27]} 19. Nf1 {[%clk 0:01:03]}  exd4 {[%clk 0:02:17]} 20. cxd4 {[%clk 0:01:04]}  Nxg5 {[%clk 0:02:08]} 21. Bxg5 {[%clk 0:01:04]}  Nh5 {[%clk 0:02:01]} 22. e5 {[%clk 0:00:55]}  Be6 {[%clk 0:01:59]} 23. Qc3 {[%clk 0:00:52]}  b4 {[%clk 0:01:57]} 24. Qc5 {[%clk 0:00:52]}  Bf8 {[%clk 0:01:55]} 25. Qa5 {[%clk 0:00:51]}  Qd7 {[%clk 0:01:49]} 26. Be3 {[%clk 0:00:42]}  Nf4 {[%clk 0:01:44]} 27. Be4 {[%clk 0:00:37]}  Nd5 {[%clk 0:01:38]} 28. Bf2 {[%clk 0:00:37]}  Qb7 {[%clk 0:01:18]} 29. Qa7 {[%clk 0:00:35]}  Qc8 {[%clk 0:00:42]} 30. Rec1 {[%clk 0:00:28]}  Bh6 {[%clk 0:00:40]} 31. Rc5 {[%clk 0:00:22]}  Ra8 {[%clk 0:00:29]} 32. Qxa8 {[%clk 0:00:20]}  Qxa8 {[%clk 0:00:30]} 33. Rxa8 {[%clk 0:00:20]}  Rxa8 {[%clk 0:00:31]} 34. Rxc6 {[%clk 0:00:16]}  Ra1 {[%clk 0:00:30]} 35. Bd3 {[%clk 0:00:12]}  Ne3 {[%clk 0:00:22]} 36. Bxe3 {[%clk 0:00:03]}  Bxe3+ {[%clk 0:00:23]} 37. Kh2 {[%clk 0:00:04]}  Bxd4 {[%clk 0:00:23]} 38. g3 {[%clk 0:00:01]}  Bxb2 {[%clk 0:00:20]} 39. Rb6 {[%clk 0:00:02]}  Bd4 {[%clk 0:00:12]} 40. Rxb4 {[%clk 0:00:00]}  Ra2+ {[%clk 0:00:12]} 0-1


[Site "https://www.chess.com"]

[Event "Titled Tuesday Blitz June 20 Late 2023"]
[White "Richter, Paul"]
[Black "Timmermans, Mark"]
[WhiteFideId "2046350"]
[BlackFideId "1026399"]
[WhiteElo "2543"]
[BlackElo "2460"]
[Result "0-1"]
[Round "5"]
[TimeControl "180+2"]
[Date "2023.06.20"]
[WhiteClock "0:00:00"]
[BlackClock "0:01:34"]
[Board "59"]

1. e4 {[%clk 0:03:00]}  e5 {[%clk 0:02:55]} 2. Nf3 {[%clk 0:03:00]}  Nc6 {[%clk 0:02:50]} 3. Bb5 {[%clk 0:03:00]}  f5 {[%clk 0:02:50]} 4. d3 {[%clk 0:02:59]}  fxe4 {[%clk 0:02:50]} 5. dxe4 {[%clk 0:03:00]}  Nf6 {[%clk 0:02:50]} 6. O-O {[%clk 0:03:01]}  d6 {[%clk 0:02:50]} 7. Bg5 {[%clk 0:03:00]}  Be7 {[%clk 0:02:50]} 8. Nc3 {[%clk 0:02:58]}  O-O {[%clk 0:02:48]} 9. Qd3 {[%clk 0:02:54]}  Kh8 {[%clk 0:02:48]} 10. Bxf6 {[%clk 0:02:39]}  Bxf6 {[%clk 0:02:48]} 11. h3 {[%clk 0:02:39]}  Qe8 {[%clk 0:02:43]} 12. Nd5 {[%clk 0:02:37]}  Bd8 {[%clk 0:02:44]} 13. c4 {[%clk 0:02:28]}  Qh5 {[%clk 0:02:44]} 14. Nh2 {[%clk 0:02:12]}  Nd4 {[%clk 0:02:40]} 15. Ba4 {[%clk 0:02:07]}  Ne2+ {[%clk 0:02:31]} 16. Kh1 {[%clk 0:02:06]}  Nf4 {[%clk 0:02:04]} 17. Nxf4 {[%clk 0:02:00]}  exf4 {[%clk 0:02:05]} 18. Bd1 {[%clk 0:01:56]}  Qg6 {[%clk 0:02:04]} 19. Bg4 {[%clk 0:01:55]}  Bf6 {[%clk 0:02:04]} 20. Bxc8 {[%clk 0:01:31]}  Raxc8 {[%clk 0:02:04]} 21. Rad1 {[%clk 0:01:23]}  Bxb2 {[%clk 0:02:04]} 22. Rb1 {[%clk 0:01:23]}  Qf6 {[%clk 0:01:45]} 23. Qe2 {[%clk 0:01:21]}  Bd4 {[%clk 0:01:43]} 24. Rxb7 {[%clk 0:00:55]}  Bb6 {[%clk 0:01:43]} 25. a4 {[%clk 0:00:54]}  a5 {[%clk 0:01:43]} 26. Qd3 {[%clk 0:00:47]}  Qe6 {[%clk 0:01:40]} 27. Nf3 {[%clk 0:00:43]}  Rfe8 {[%clk 0:01:36]} 28. Ng5 {[%clk 0:00:11]}  Qg6 {[%clk 0:01:32]} 29. h4 {[%clk 0:00:08]}  h6 {[%clk 0:01:32]} 30. Nf3 {[%clk 0:00:04]}  Qxe4 {[%clk 0:01:33]} 31. Qxe4 {[%clk 0:00:00]}  Rxe4 {[%clk 0:01:34]} 0-1


[Site "https://www.chess.com"]

[Event "Titled Tuesday Blitz June 20 Late 2023"]
[White "Lizak, Peter"]
[Black "Ortega Amarelle, Mariano"]
[WhiteFideId "731595"]
[BlackFideId "3504301"]
[WhiteElo "2420"]
[BlackElo "2392"]
[Result "0-1"]
[Round "5"]
[TimeControl "180+2"]
[Date "2023.06.20"]
[WhiteClock "0:00:00"]
[BlackClock "0:00:26"]
[Board "60"]

1. d4 {[%clk 0:03:00]}  d5 {[%clk 0:02:57]} 2. Nf3 {[%clk 0:03:00]}  c6 {[%clk 0:02:58]} 3. c4 {[%clk 0:03:01]}  Nf6 {[%clk 0:02:57]} 4. Nc3 {[%clk 0:03:01]}  dxc4 {[%clk 0:02:57]} 5. a4 {[%clk 0:03:00]}  Bf5 {[%clk 0:02:58]} 6. Ne5 {[%clk 0:03:00]}  e6 {[%clk 0:02:58]} 7. Nxc4 {[%clk 0:02:53]}  c5 {[%clk 0:02:50]} 8. e3 {[%clk 0:02:43]}  cxd4 {[%clk 0:02:50]} 9. exd4 {[%clk 0:02:41]}  Bb4 {[%clk 0:02:48]} 10. Be2 {[%clk 0:02:38]}  O-O {[%clk 0:02:48]} 11. O-O {[%clk 0:02:38]}  Nc6 {[%clk 0:02:47]} 12. Be3 {[%clk 0:02:37]}  Nd5 {[%clk 0:02:42]} 13. Nxd5 {[%clk 0:02:31]}  Qxd5 {[%clk 0:02:41]} 14. b3 {[%clk 0:02:26]}  Rfd8 {[%clk 0:02:37]} 15. a5 {[%clk 0:01:47]}  Bc3 {[%clk 0:02:10]} 16. Ra4 {[%clk 0:01:37]}  Nxd4 {[%clk 0:01:57]} 17. Bxd4 {[%clk 0:01:31]}  Bxd4 {[%clk 0:01:57]} 18. Bf3 {[%clk 0:01:30]}  Qb5 {[%clk 0:01:54]} 19. Nd6 {[%clk 0:01:16]}  Rxd6 {[%clk 0:01:31]} 20. Rxd4 {[%clk 0:01:16]}  Rxd4 {[%clk 0:01:32]} 21. Qxd4 {[%clk 0:01:16]}  Qxa5 {[%clk 0:01:27]} 22. Bxb7 {[%clk 0:01:03]}  Rd8 {[%clk 0:01:26]} 23. Qh4 {[%clk 0:00:52]}  h6 {[%clk 0:01:17]} 24. h3 {[%clk 0:00:52]}  Qb6 {[%clk 0:01:13]} 25. Bf3 {[%clk 0:00:51]}  Rd4 {[%clk 0:01:10]} 26. Qe7 {[%clk 0:00:48]}  Rd2 {[%clk 0:00:36]} 27. Qe8+ {[%clk 0:00:19]}  Kh7 {[%clk 0:00:36]} 28. Qxf7 {[%clk 0:00:20]}  Bd3 {[%clk 0:00:36]} 29. Kh2 {[%clk 0:00:17]}  Qd6+ {[%clk 0:00:33]} 30. Kg1 {[%clk 0:00:13]}  Qd4 {[%clk 0:00:32]} 31. Rc1 {[%clk 0:00:04]}  Rxf2 {[%clk 0:00:27]} 32. Kh2 {[%clk 0:00:04]}  Qe5+ {[%clk 0:00:26]} 33. Kg1 {[%clk 0:00:00]}  Qe3 {[%clk 0:00:26]} 0-1


[Site "https://www.chess.com"]

[Event "Titled Tuesday Blitz June 20 Late 2023"]
[White "Lamard, Guillaume"]
[Black "MaryanKyrychenko"]
[WhiteFideId "600261"]
[WhiteElo "2413"]
[BlackElo "2529"]
[Result "0-1"]
[Round "5"]
[TimeControl "180+2"]
[Date "2023.06.20"]
[WhiteClock "0:00:43"]
[BlackClock "0:00:54"]
[Board "61"]

1. e4 {[%clk 0:03:00]}  c5 {[%clk 0:02:59]} 2. Nf3 {[%clk 0:03:00]}  d6 {[%clk 0:03:00]} 3. Bb5+ {[%clk 0:03:00]}  Nd7 {[%clk 0:03:00]} 4. a4 {[%clk 0:02:57]}  g6 {[%clk 0:03:00]} 5. O-O {[%clk 0:02:56]}  Bg7 {[%clk 0:03:00]} 6. Nc3 {[%clk 0:02:57]}  Nf6 {[%clk 0:03:00]} 7. a5 {[%clk 0:02:54]}  a6 {[%clk 0:02:59]} 8. Bc4 {[%clk 0:02:54]}  O-O {[%clk 0:02:59]} 9. d3 {[%clk 0:02:46]}  b5 {[%clk 0:02:58]} 10. axb6 {[%clk 0:02:45]}  Nxb6 {[%clk 0:02:59]} 11. Re1 {[%clk 0:02:37]}  Bb7 {[%clk 0:02:58]} 12. Bg5 {[%clk 0:02:31]}  Nxc4 {[%clk 0:02:54]} 13. dxc4 {[%clk 0:02:31]}  h6 {[%clk 0:02:45]} 14. Bh4 {[%clk 0:02:24]}  Qb6 {[%clk 0:02:36]} 15. b3 {[%clk 0:02:18]}  g5 {[%clk 0:02:24]} 16. Bg3 {[%clk 0:02:17]}  Nh5 {[%clk 0:02:21]} 17. Na4 {[%clk 0:02:09]}  Qc7 {[%clk 0:01:50]} 18. Ra2 {[%clk 0:02:08]}  Nxg3 {[%clk 0:01:50]} 19. hxg3 {[%clk 0:02:07]}  Rad8 {[%clk 0:01:46]} 20. Qd3 {[%clk 0:02:05]}  Rfe8 {[%clk 0:01:46]} 21. Nc3 {[%clk 0:02:05]}  e6 {[%clk 0:01:45]} 22. g4 {[%clk 0:01:52]}  Qe7 {[%clk 0:01:44]} 23. Re3 {[%clk 0:01:42]}  Qf6 {[%clk 0:01:41]} 24. g3 {[%clk 0:01:43]}  Qg6 {[%clk 0:01:35]} 25. Ra5 {[%clk 0:01:39]}  Bxc3 {[%clk 0:01:31]} 26. Qxc3 {[%clk 0:01:39]}  Bxe4 {[%clk 0:01:31]} 27. Rxa6 {[%clk 0:01:38]}  Bxc2 {[%clk 0:01:29]} 28. Nd2 {[%clk 0:01:28]}  d5 {[%clk 0:01:22]} 29. cxd5 {[%clk 0:01:22]}  Rxd5 {[%clk 0:01:23]} 30. Ra2 {[%clk 0:01:08]}  Bd1 {[%clk 0:01:14]} 31. Qc4 {[%clk 0:01:00]}  Red8 {[%clk 0:01:04]} 32. Nf3 {[%clk 0:00:45]}  Bxf3 {[%clk 0:01:03]} 33. Rxf3 {[%clk 0:00:45]}  Qb1+ {[%clk 0:01:02]} 34. Kg2 {[%clk 0:00:45]}  Qxa2 {[%clk 0:01:00]} 35. Rxf7 {[%clk 0:00:43]}  Kxf7 {[%clk 0:00:58]} 36. Qe4 {[%clk 0:00:43]}  Qb2 {[%clk 0:00:54]} 0-1


[Site "https://www.chess.com"]

[Event "Titled Tuesday Blitz June 20 Late 2023"]
[White "Kochiev, Ivan"]
[Black "Goryachkina, Aleksandra"]
[WhiteFideId "2917890"]
[BlackFideId "4147103"]
[WhiteElo "2287"]
[BlackElo "2471"]
[Result "1/2-1/2"]
[Round "5"]
[TimeControl "180+2"]
[Date "2023.06.20"]
[WhiteClock "0:00:04"]
[BlackClock "0:00:05"]
[Board "63"]

1. e4 {[%clk 0:02:58]}  c6 {[%clk 0:03:00]} 2. d4 {[%clk 0:02:57]}  d5 {[%clk 0:03:00]} 3. Nc3 {[%clk 0:02:58]}  dxe4 {[%clk 0:02:58]} 4. Nxe4 {[%clk 0:02:59]}  Nd7 {[%clk 0:02:59]} 5. Nf3 {[%clk 0:02:54]}  Ngf6 {[%clk 0:02:58]} 6. Ng3 {[%clk 0:02:54]}  g6 {[%clk 0:02:52]} 7. h4 {[%clk 0:02:52]}  h5 {[%clk 0:02:51]} 8. Bd3 {[%clk 0:02:46]}  Bg7 {[%clk 0:02:51]} 9. c3 {[%clk 0:02:23]}  Ng4 {[%clk 0:02:47]} 10. Qc2 {[%clk 0:02:14]}  O-O {[%clk 0:02:39]} 11. Ng5 {[%clk 0:02:09]}  Qe8 {[%clk 0:01:42]} 12. f4 {[%clk 0:01:51]}  c5 {[%clk 0:01:35]} 13. d5 {[%clk 0:01:47]}  Ndf6 {[%clk 0:01:33]} 14. c4 {[%clk 0:01:42]}  b5 {[%clk 0:01:33]} 15. O-O {[%clk 0:01:25]}  bxc4 {[%clk 0:01:27]} 16. Bxc4 {[%clk 0:01:23]}  Bb7 {[%clk 0:01:27]} 17. f5 {[%clk 0:00:50]}  Nxd5 {[%clk 0:01:20]} 18. Qb3 {[%clk 0:00:32]}  Qc6 {[%clk 0:01:10]} 19. N3e4 {[%clk 0:00:20]}  gxf5 {[%clk 0:00:57]} 20. Rxf5 {[%clk 0:00:19]}  e6 {[%clk 0:00:57]} 21. Rf1 {[%clk 0:00:14]}  f5 {[%clk 0:00:56]} 22. Nxe6 {[%clk 0:00:06]}  fxe4 {[%clk 0:00:54]} 23. Nxf8 {[%clk 0:00:04]}  Rxf8 {[%clk 0:00:52]} 24. Bg5 {[%clk 0:00:03]}  Bd4+ {[%clk 0:00:31]} 25. Kh1 {[%clk 0:00:03]}  Rxf1+ {[%clk 0:00:31]} 26. Rxf1 {[%clk 0:00:03]}  Kg7 {[%clk 0:00:26]} 27. Qg3 {[%clk 0:00:01]}  Be5 {[%clk 0:00:14]} 28. Qh3 {[%clk 0:00:01]}  Qd7 {[%clk 0:00:08]} 29. Be2 {[%clk 0:00:01]}  e3 {[%clk 0:00:06]} 30. b3 {[%clk 0:00:02]}  Nc3 {[%clk 0:00:05]} 31. Bf3 {[%clk 0:00:02]}  e2 {[%clk 0:00:03]} 32. Re1 {[%clk 0:00:03]}  Bxf3 {[%clk 0:00:03]} 33. Qxf3 {[%clk 0:00:02]}  Qd5 {[%clk 0:00:03]} 34. Qxd5 {[%clk 0:00:02]}  Nxd5 {[%clk 0:00:03]} 35. Rxe2 {[%clk 0:00:03]}  Bd4 {[%clk 0:00:04]} 36. Re6 {[%clk 0:00:02]}  Kf7 {[%clk 0:00:04]} 37. Ra6 {[%clk 0:00:02]}  Nf2+ {[%clk 0:00:03]} 38. Kh2 {[%clk 0:00:02]}  Ng4+ {[%clk 0:00:03]} 39. Kh1 {[%clk 0:00:03]}  Nc3 {[%clk 0:00:04]} 40. Rxa7+ {[%clk 0:00:03]}  Ke6 {[%clk 0:00:04]} 41. Rh7 {[%clk 0:00:02]}  Ne4 {[%clk 0:00:04]} 42. g3 {[%clk 0:00:02]}  Nxg3+ {[%clk 0:00:04]} 43. Kg2 {[%clk 0:00:02]}  Ne4 {[%clk 0:00:04]} 44. Rxh5 {[%clk 0:00:03]}  Nxg5 {[%clk 0:00:02]} 45. Rxg5 {[%clk 0:00:03]}  Ne3+ {[%clk 0:00:02]} 46. Kf3 {[%clk 0:00:03]}  Kf6 {[%clk 0:00:02]} 47. Rg1 {[%clk 0:00:03]}  Nf5 {[%clk 0:00:03]} 48. Rf1 {[%clk 0:00:02]}  Kg6 {[%clk 0:00:02]} 49. Kg4 {[%clk 0:00:02]}  Ne3+ {[%clk 0:00:03]} 50. Kf3 {[%clk 0:00:02]}  Nxf1 {[%clk 0:00:03]} 51. Ke4 {[%clk 0:00:03]}  Nd2+ {[%clk 0:00:04]} 52. Kd3 {[%clk 0:00:02]}  Nb1 {[%clk 0:00:03]} 53. b4 {[%clk 0:00:02]}  Nc3 {[%clk 0:00:01]} 54. bxc5 {[%clk 0:00:02]}  Bxc5 {[%clk 0:00:02]} 55. Kxc3 {[%clk 0:00:02]}  Kh5 {[%clk 0:00:02]} 56. Kc4 {[%clk 0:00:03]}  Ba3 {[%clk 0:00:02]} 57. Kb3 {[%clk 0:00:03]}  Bc5 {[%clk 0:00:03]} 58. Kc4 {[%clk 0:00:03]}  Ba7 {[%clk 0:00:03]} 59. a4 {[%clk 0:00:04]}  Kxh4 {[%clk 0:00:04]} 60. Kb5 {[%clk 0:00:04]}  Be3 {[%clk 0:00:04]} 61. Ka6 {[%clk 0:00:04]}  Bf2 {[%clk 0:00:05]} 62. Kb7 {[%clk 0:00:04]}  Be1 {[%clk 0:00:05]} 63. a5 {[%clk 0:00:04]}  Bxa5 {[%clk 0:00:05]} 1/2-1/2


[Site "https://www.chess.com"]

[Event "Titled Tuesday Blitz June 20 Late 2023"]
[White "whiteglovethief"]
[Black "Sadhwani, Raunak"]
[BlackFideId "35093487"]
[WhiteElo "2517"]
[BlackElo "2631"]
[Result "0-1"]
[Round "5"]
[TimeControl "180+2"]
[Date "2023.06.20"]
[WhiteClock "0:00:00"]
[BlackClock "0:00:27"]
[Board "69"]

1. d4 {[%clk 0:03:00]}  Nf6 {[%clk 0:02:33]} 2. c4 {[%clk 0:03:00]}  d6 {[%clk 0:02:32]} 3. Nc3 {[%clk 0:02:59]}  Nbd7 {[%clk 0:02:32]} 4. e4 {[%clk 0:02:59]}  e5 {[%clk 0:02:33]} 5. Nf3 {[%clk 0:02:57]}  Be7 {[%clk 0:02:33]} 6. d5 {[%clk 0:02:53]}  O-O {[%clk 0:02:33]} 7. Bd3 {[%clk 0:02:51]}  Nc5 {[%clk 0:02:33]} 8. Bc2 {[%clk 0:02:51]}  a5 {[%clk 0:02:34]} 9. O-O {[%clk 0:02:50]}  Bg4 {[%clk 0:02:34]} 10. h3 {[%clk 0:02:49]}  Bh5 {[%clk 0:02:34]} 11. a3 {[%clk 0:02:29]}  a4 {[%clk 0:02:32]} 12. Be3 {[%clk 0:02:27]}  b6 {[%clk 0:02:26]} 13. Bxc5 {[%clk 0:02:25]}  bxc5 {[%clk 0:02:27]} 14. Bxa4 {[%clk 0:02:24]}  Qb8 {[%clk 0:02:24]} 15. Bc6 {[%clk 0:01:33]}  Qxb2 {[%clk 0:02:21]} 16. Nb5 {[%clk 0:01:08]}  Nxe4 {[%clk 0:01:46]} 17. g4 {[%clk 0:00:49]}  Bg6 {[%clk 0:01:42]} 18. Rb1 {[%clk 0:00:47]}  Qa2 {[%clk 0:01:23]} 19. Ra1 {[%clk 0:00:47]}  Qb2 {[%clk 0:00:32]} 20. Rb1 {[%clk 0:00:47]}  Nxf2 {[%clk 0:00:31]} 21. Rxb2 {[%clk 0:00:46]}  Nxd1 {[%clk 0:00:32]} 22. Rxd1 {[%clk 0:00:46]}  Ra5 {[%clk 0:00:33]} 23. Nh4 {[%clk 0:00:41]}  Bxh4 {[%clk 0:00:33]} 24. Nxc7 {[%clk 0:00:32]}  Rxa3 {[%clk 0:00:32]} 25. Ne8 {[%clk 0:00:32]}  e4 {[%clk 0:00:25]} 26. Kh2 {[%clk 0:00:33]}  Bg3+ {[%clk 0:00:24]} 27. Kg2 {[%clk 0:00:33]}  Be5 {[%clk 0:00:25]} 28. Re2 {[%clk 0:00:31]}  Rg3+ {[%clk 0:00:26]} 29. Kf2 {[%clk 0:00:30]}  Rxh3 {[%clk 0:00:26]} 30. Rb1 {[%clk 0:00:26]}  e3+ {[%clk 0:00:26]} 31. Kg2 {[%clk 0:00:23]}  Rg3+ {[%clk 0:00:26]} 32. Kf1 {[%clk 0:00:00]}  Bxb1 {[%clk 0:00:27]} 0-1


[Site "https://www.chess.com"]